fUST/lending_fUST_20250622
["ID","MTS","AMOUNT","RATE_DAILY","PERIOD"]
[366877703,1750541439161,-460.0,0.00023606,2]
[366877705,1750541439170,-907.99160626,0.00023607,2]
[366877707,1750541439179,-470.77915982,0.00023619,2]
[366877709,1750541439190,-460.0,0.00023619,2]
[366877711,1750541439199,-460.0,0.00023619,2]
[366877713,1750541439209,-408.34192971,0.00023682,2]
[366877715,1750541439219,-255.0,0.00023682,2]
[366877717,1750541439228,-255.0,0.00023682,2]
[366877719,1750541439238,-255.0,0.00023682,2]
[366877721,1750541439247,-187.79783599,0.00023682,2]
[366877722,1750541439256,-795.93134112,0.00023693,9]
[366877724,1750541439265,-795.93134112,0.00023831,10]
[366877727,1750541439275,-207.4,0.00023967,2]
[366877728,1750541439284,-300.0,0.00023967,2]
[366877730,1750541439293,-300.0,0.00023967,2]
[366877732,1750541439302,-5000.0,0.00023967,2]
[366877734,1750541439312,-300.0,0.00023967,2]
[366877736,1750541439321,-300.0,0.00023967,2]
[366877738,1750541439330,-300.0,0.00023967,2]
[366877739,1750541439339,-300.0,0.00023967,2]
[366877740,1750541439349,-346.18962568,0.00023967,2]
[366877741,1750541439358,-800.0,0.00023967,2]
[366877743,1750541439367,-800.0,0.00023967,2]
[366877745,1750541439377,-800.0,0.00023967,2]
[366877746,1750541439386,-800.0,0.00023967,2]
[366877748,1750541439396,-800.0,0.00023967,2]
[366877752,1750541439405,-800.0,0.00023967,2]
[366877754,1750541439414,-800.0,0.00023967,2]
[366877757,1750541439424,-800.0,0.00023967,2]
[366877759,1750541439433,-800.0,0.00023967,2]
[366877762,1750541439442,-800.0,0.00023967,2]
[366877764,1750541439452,-800.0,0.00023967,2]
[366877766,1750541439465,-800.0,0.00023967,2]
[366877768,1750541439474,-800.0,0.00023967,2]
[366877769,1750541439484,-800.0,0.00023967,2]
[366877770,1750541439493,-800.0,0.00023967,2]
[366877771,1750541439502,-795.93134112,0.00023969,10]
[366877772,1750541439512,-424.93363889,0.00024,7]
[366877773,1750541439521,-160.0,0.00024,7]
[366877774,1750541439530,-3663.52,0.00024019,2]
[366877775,1750541439540,-167.19677086,0.00024025,2]
[366877776,1750541439549,-500.0,0.00024025,2]
[366877777,1750541439559,-500.0,0.00024025,2]
[366877778,1750541439569,-500.0,0.00024025,2]
[366877779,1750541439578,-381.15923323,0.00024025,2]
[366877780,1750541439587,-500.0,0.00024025,2]
[366877781,1750541439597,-500.38764386,0.00024025,2]
[366877782,1750541439606,-500.0,0.00024025,2]
[366877783,1750541439615,-441.22774082,0.00024025,2]
[366877784,1750541439625,-503.41899336,0.00024025,2]
[366877785,1750541439634,-600.0,0.00024025,2]
[366877786,1750541439645,-500.0,0.00024025,2]
[366877787,1750541439655,-500.0,0.00024025,2]
[366877788,1750541439665,-506.87102913,0.00024025,2]
[366877789,1750541439674,-150.91223692,0.00024025,2]
[366877790,1750541439684,-516.82066677,0.00024025,2]
[366877791,1750541439693,-500.0,0.00024025,2]
[366877792,1750541439703,-555.82829724,0.00024036,2]
[366877793,1750541439713,-500.0,0.00024036,2]
[366877794,1750541439722,-500.0,0.00024036,2]
[366877795,1750541439732,-500.0,0.00024036,2]
[366877796,1750541439741,-501.01766854,0.00024036,2]
[366877797,1750541439751,-460.0,0.00024094,2]
[366877798,1750541439760,-500.0,0.00024095,8]
[366877799,1750541439770,-587.0,0.00024097,2]
[366877800,1750541439876,-841.39,0.000241,7]
[366877801,1750541439889,-795.93134112,0.00024107,10]
[366877802,1750541439901,-500.0,0.00024161,2]
[366877803,1750541439910,-473.53569878,0.00024175,2]
[366877804,1750541439919,-460.0,0.00024175,2]
[366877805,1750541439928,-795.93134112,0.00024245,10]
[366877806,1750541439937,-587.0,0.00024284,2]
[366877808,1750541439946,-181.210196,0.000243,2]
[366877810,1750541439955,-500.0,0.0002434,2]
[366877812,1750541439964,-500.0,0.0002434,2]
[366877813,1750541439973,-500.0,0.0002434,2]
[366877814,1750541439983,-500.0,0.0002434,2]
[366877815,1750541439992,-795.93134112,0.00024383,11]
[366877816,1750541440002,-157.748237,0.00024402,2]
[366877817,1750541440011,-484.74,0.00024501,3]
[366877818,1750541440020,-500.0,0.00024505,2]
[366877819,1750541440029,-795.93134112,0.00024521,11]
[366877820,1750541440038,-1000.0,0.00024573,2]
[366877821,1750541440047,-1200.0,0.00024573,2]
[366877822,1750541440057,-1000.0,0.00024573,2]
[366877823,1750541440066,-500.0,0.00024573,2]
[366877824,1750541440075,-168.0,0.00024583,2]
[366877825,1750541440085,-1000.0,0.00024584,2]
[366877826,1750541440094,-500.0,0.00024584,2]
[366877827,1750541440104,-500.0,0.00024584,2]
[366877828,1750541440113,-500.0,0.00024643,9]
[366877829,1750541440123,-1000.0,0.00024658,2]
[366877830,1750541440132,-1000.0,0.00024658,2]
[366877831,1750541440142,-342.07116602,0.00024658,2]
[366877832,1750541440153,-1000.0,0.00024658,2]
[366877833,1750541440163,-1000.0,0.00024658,2]
[366877834,1750541440172,-500.0,0.00024658,2]
[366877835,1750541440181,-795.93134112,0.00024659,11]
[366877836,1750541440191,-693.12809125,0.00024673,2]
[366877837,1750541440200,-500.0,0.00024685,2]
[366877838,1750541440209,-500.0,0.00024713,2]
[366877839,1750541440219,-500.0,0.0002474,2]
[366877840,1750541440228,-795.93134112,0.00024797,11]
[366877841,1750541440237,-460.0,0.00024799,2]
[366877842,1750541440247,-297.67299732,0.00024804,2]
[366877843,1750541440257,-65015.24,0.0002487,2]
[366877844,1750541440266,-150.0,0.00024873,2]
[366877845,1750541440275,-150.0,0.00024873,2]
[366877846,1750541440285,-495.14,0.0002489,3]
[366877847,1750541440294,-161.55728447,0.000249,2]
[366877848,1750541440303,-708719.458087,0.000249,2]
[366877849,1750541440313,-1500.78,0.000249,2]
[366877850,1750541440323,-1938.98,0.00024909,3]
[366877851,1750541440332,-969.5,0.00024909,3]
[366877852,1750541440342,-795.93134112,0.00024934,12]
[366877853,1750541440351,-460.0,0.00024968,2]
[366877854,1750541440360,-460.0,0.00024968,2]
[366877855,1750541440370,-460.0,0.00024968,2]
[366877856,1750541440379,-424.78,0.00024968,2]
[366877857,1750541440389,-654.0,0.00024987,2]
[366877858,1750541440400,-2161.0,0.00024987,2]
[366877859,1750541440410,-406.0,0.00024987,2]
[366877860,1750541440420,-1000.0,0.00025,2]
[366877861,1750541440429,-16425.23230299,0.00025,30]
[366877862,1750541440439,-1061.11339362,0.00025,2]
[366877863,1750541440448,-15960.02879261,0.00025,2]
[366877864,1750541440458,-24493.67953749,0.00025,2]
[366877865,1750541440467,-2613.12828376,0.00025,2]
[366877866,1750541440477,-207.29037921,0.00025,2]
[366877867,1750541440487,-10364.0,0.00025,2]
[366877868,1750541440496,-357.8233027,0.00025,2]
[366877869,1750541440505,-523.9660634,0.00025,10]
[366877870,1750541440514,-203.5490439,0.00025,120]
[366877871,1750541440523,-150.0,0.00025,2]
[366877872,1750541440533,-150.0,0.00025,3]
[366877873,1750541440542,-172.47381765,0.00025,2]
[366877874,1750541440551,-50297.91868364,0.00025,2]
[366877875,1750541440565,-3366.63771761,0.00025,2]
[366877890,1750541444439,-253.875,0.00020504,2]
[366878190,1750541447450,-246.125,0.00020504,2]
[366878191,1750541447459,-500.0,0.00020504,2]
[366878192,1750541447467,-500.0,0.00020504,2]
[366878193,1750541447476,-500.0,0.00020504,2]
[366878194,1750541447486,-500.0,0.00020504,2]
[366878195,1750541447495,-500.0,0.00020504,2]
[366878196,1750541447504,-500.0,0.00020504,2]
[366878197,1750541447513,-500.0,0.00020504,2]
[366878198,1750541447522,-500.0,0.00020504,2]
[366878199,1750541447531,-500.0,0.00020504,2]
[366878200,1750541447540,-326.21368747,0.00020504,2]
[366878201,1750541447550,-500.0,0.00020504,2]
[366878202,1750541447559,-460.0,0.00021917,2]
[366878203,1750541447569,-460.0,0.00021917,2]
[366878204,1750541447579,-460.0,0.00024094,2]
[366878205,1750541447588,-460.0,0.00024799,2]
[366878206,1750541447597,-460.0,0.00024838,2]
[366878207,1750541447607,-460.0,0.00024869,2]
[366878208,1750541447617,-460.0,0.00024869,2]
[366878209,1750541447626,-497.74832619,0.00024869,2]
[366878210,1750541447636,-965.0,0.00024987,2]
[366878211,1750541447645,-20312.91298635,0.00025,2]
[366878212,1750541447659,-2800.00000038,0.00025,2]
[366878213,1750541447675,-43222.53061202,0.00025,2]
[366878214,1750541447684,-1000.0,0.00025,2]
[366878215,1750541447693,-600.0,0.00025,2]
[366878216,1750541447703,-500.0,0.00025051,2]
[366878217,1750541447713,-168.0,0.00025062,2]
[366878218,1750541447722,-676.97,0.00025067,4]
[366878219,1750541447731,-795.93134112,0.00025072,12]
[366878220,1750541447740,-24629.72345912,0.000251,60]
[366878221,1750541447749,-1800.0,0.00025121,2]
[366878222,1750541447759,-1500.0,0.00025121,2]
[366878223,1750541447768,-1500.0,0.00025132,2]
[366878224,1750541447778,-500.0,0.00025191,10]
[366878225,1750541447788,-460.0,0.00025199,2]
[366878226,1750541447797,-404.9,0.000252,31]
[366878227,1750541447808,-404.9,0.000252,31]
[366878228,1750541447819,-404.9,0.000252,31]
[366878229,1750541447828,-404.9,0.000252,31]
[366878230,1750541447838,-404.9,0.000252,31]
[366878231,1750541447848,-404.9,0.000252,31]
[366878232,1750541447858,-404.9,0.000252,31]
[366878233,1750541447869,-404.9,0.000252,31]
[366878234,1750541447879,-404.9,0.000252,31]
[366878235,1750541447890,-404.9,0.000252,31]
[366878236,1750541447902,-404.9,0.000252,31]
[366878237,1750541447910,-404.9,0.000252,31]
[366878238,1750541447919,-404.9,0.000252,31]
[366878239,1750541447928,-404.9,0.000252,31]
[366878240,1750541447937,-404.9,0.000252,31]
[366878241,1750541447945,-404.9,0.000252,31]
[366878242,1750541447955,-795.93134112,0.0002521,12]
[366878243,1750541447963,-460.0,0.0002523,2]
[366878244,1750541447971,-460.0,0.0002523,2]
[366878245,1750541447980,-463.84427361,0.0002523,2]
[366878246,1750541447989,-460.0,0.0002523,2]
[366878247,1750541447998,-460.0,0.0002523,2]
[366878248,1750541448007,-460.0,0.0002523,2]
[366878249,1750541448017,-477.00126912,0.0002523,2]
[366878250,1750541448027,-460.0,0.0002523,2]
[366878251,1750541448036,-460.0,0.0002523,2]
[366878252,1750541448047,-460.0,0.0002523,2]
[366878253,1750541448056,-460.0,0.0002523,2]
[366878254,1750541448067,-460.0,0.0002523,2]
[366878255,1750541448077,-460.0,0.0002523,2]
[366878256,1750541448086,-460.0,0.0002523,2]
[366878257,1750541448096,-19835.10127078,0.00025241,3]
[366878258,1750541448106,-460.0,0.00025249,2]
[366878259,1750541448117,-382.34854382,0.00025249,2]
[366878260,1750541448127,-6339.19993206,0.00025249,2]
[366878261,1750541448137,-12549.17366507,0.0002525,3]
[366878262,1750541448147,-676.97,0.00025267,3]
[366878263,1750541448161,-500.0,0.00025273,2]
[366878264,1750541448171,-441.04642128,0.00025279,2]
[366878265,1750541448181,-460.0,0.00025279,2]
[366878266,1750541448191,-324.00234256,0.00025279,2]
[366878267,1750541448201,-462.27488601,0.00025288,2]
[366878268,1750541448211,-460.0,0.00025288,2]
[366878269,1750541448221,-295.99655748,0.00025288,2]
[366878270,1750541448231,-460.0,0.00025288,2]
[366878271,1750541448240,-463.39305521,0.00025288,2]
[366878273,1750541448250,-460.0,0.00025288,2]
[366878275,1750541448260,-222.55,0.00025289,2]
[366878276,1750541448270,-460.0,0.00025289,2]
[366878278,1750541448279,-460.0,0.00025289,2]
[366878280,1750541448289,-460.0,0.00025289,2]
[366878282,1750541448299,-438.6,0.00025289,2]
[366878284,1750541448308,-460.0,0.00025289,2]
[366878286,1750541448318,-460.0,0.00025289,2]
[366878288,1750541448327,-460.0,0.00025289,2]
[366878290,1750541448337,-460.0,0.00025289,2]
[366878292,1750541448347,-460.0,0.00025289,2]
[366878294,1750541448356,-575.40142983,0.00025289,2]
[366878296,1750541448366,-194.62,0.00025289,2]
[366878298,1750541448375,-151.0,0.0002529,7]
[366878300,1750541448385,-151.0,0.0002529,7]
[366878302,1750541448394,-151.909552,0.0002529,7]
[366878304,1750541448406,-168.0,0.00025295,2]
[366878305,1750541448416,-460.0,0.00025298,2]
[366878308,1750541448425,-460.0,0.00025299,2]
[366878310,1750541448435,-441.89889904,0.00025299,2]
[366878311,1750541448445,-460.0,0.00025299,2]
[366878313,1750541448454,-460.0,0.00025299,2]
[366878315,1750541448463,-460.0,0.00025299,2]
[366878317,1750541448473,-2000.0,0.000253,2]
[366878319,1750541448483,-2000.0,0.000253,2]
[366878321,1750541448494,-1551.0,0.000253,14]
[366878323,1750541448503,-29130.33,0.000253,30]
[366878335,1750541448598,-151.0,0.000253,17]
[366878337,1750541448609,-151.0,0.000253,12]
[366878339,1750541448619,-150.0,0.000253,5]
[366878341,1750541448628,-151.0,0.000253,7]
[366878343,1750541448637,-151.0,0.000253,7]
[366878345,1750541448647,-640.0,0.000253,2]
[366878347,1750541448658,-151.0,0.000253,7]
[366878348,1750541448667,-523.9660634,0.000253,30]
[366878350,1750541448677,-154.404908,0.000253,7]
[366878352,1750541448689,-151.0,0.000253,7]
[366878354,1750541448699,-151.0,0.000253,7]
[366878356,1750541448708,-151.0,0.000253,7]
[366878358,1750541448717,-424.93363889,0.000253,3]
[366878360,1750541448727,-160.0,0.000253,3]
[366878362,1750541448738,-151.0,0.000253,7]
[366878364,1750541448748,-512.19,0.0002533,2]
[366878366,1750541448757,-215.0738,0.00025336,2]
[366878368,1750541448767,-5000.0,0.00025339,2]
[366878370,1750541448777,-200.0,0.0002534,12]
[366878373,1750541448786,-160.0,0.0002534,2]
[366878375,1750541448796,-460.0,0.0002534,2]
[366878376,1750541448806,-468.14395934,0.0002534,2]
[366878378,1750541448819,-159.436539,0.00025341,7]
[366878380,1750541448828,-151.480385,0.00025341,7]
[366878382,1750541448837,-151.0,0.00025341,7]
[366878384,1750541448846,-151.0,0.00025341,7]
[366878386,1750541448857,-151.0,0.00025341,7]
[366878388,1750541448866,-296.505132,0.00025341,7]
[366878390,1750541448875,-151.0,0.00025341,7]
[366878392,1750541448886,-151.0,0.00025341,7]
[366878394,1750541448896,-151.0,0.00025341,7]
[366878396,1750541448907,-151.0,0.00025341,7]
[366878398,1750541448917,-151.0,0.00025341,7]
[366878400,1750541448926,-240.971046,0.00025341,7]
[366878402,1750541448936,-151.0,0.00025341,7]
[366878404,1750541448945,-151.0,0.00025341,2]
[366878406,1750541448955,-151.0,0.00025341,2]
[366878408,1750541448965,-198.0,0.00025341,2]
[366878410,1750541448975,-151.000001,0.00025341,7]
[366878412,1750541448984,-151.0,0.00025341,7]
[366878414,1750541448994,-151.0,0.00025341,7]
[366878416,1750541449004,-151.0,0.00025341,7]
[366878418,1750541449014,-151.0,0.00025341,7]
[366878420,1750541449023,-151.0,0.00025341,7]
[366878422,1750541449033,-232.181356,0.00025341,7]
[366878424,1750541449042,-211.021358,0.00025341,7]
[366878426,1750541449051,-151.0,0.00025341,7]
[366878428,1750541449061,-151.0,0.00025341,7]
[366878430,1750541449071,-288.744084,0.00025341,7]
[366878432,1750541449081,-151.0,0.00025341,7]
[366878434,1750541449091,-151.0,0.00025341,7]
[366878436,1750541449100,-151.0,0.00025341,7]
[366878438,1750541449109,-151.0,0.00025341,7]
[366878440,1750541449119,-151.0,0.00025341,7]
[366878442,1750541449128,-237.173738,0.00025341,7]
[366878443,1750541449137,-500.0,0.00025347,9]
[366878445,1750541449146,-151.0,0.00025348,7]
[366878447,1750541449157,-151.0,0.00025348,7]
[366878449,1750541449167,-151.0,0.00025348,7]
[366878451,1750541449176,-151.0,0.00025348,7]
[366878454,1750541449186,-295.734244,0.00025348,7]
[366878455,1750541449196,-795.93134112,0.00025348,13]
[366878457,1750541449206,-151.0,0.00025349,7]
[366878460,1750541449216,-267.733687,0.00025349,7]
[366878462,1750541449227,-151.0,0.00025349,7]
[366878463,1750541449236,-151.0,0.00025349,7]
[366878466,1750541449246,-151.0,0.00025349,7]
[366878467,1750541449256,-151.0,0.00025349,7]
[366878470,1750541449266,-151.0,0.00025349,7]
[366878471,1750541449276,-151.0,0.00025349,7]
[366878473,1750541449285,-151.0,0.00025349,7]
[366878475,1750541449296,-298.461047,0.00025349,7]
[366878478,1750541449306,-151.0,0.00025349,7]
[366878479,1750541449315,-181.33082,0.00025349,7]
[366878481,1750541449324,-59858.20670014,0.0002535,20]
[366878486,1750541449358,-460.0,0.00021917,2]
[366878488,1750541449367,-345.06,0.00021917,2]
[366878490,1750541449377,-253.36344795,0.0002535,20]
[366878492,1750541449389,-1383.54627258,0.0002535,20]
[366878494,1750541449400,-1192.26948473,0.0002535,20]
[366878496,1750541449413,-366.002133,0.0002535,20]
[366878499,1750541449424,-894131.20124017,0.0002535,20]
[366878501,1750541449435,-1278.20333106,0.0002535,20]
[366878503,1750541449446,-408.70424004,0.0002535,20]
[366878506,1750541449461,-508800.00000025,0.0002535,20]
[366878823,1750542589584,340.094261,0.00013699,2]
[366878917,1750542632140,-5000.0,0.0001988,2]
[366878920,1750542632150,-340.094261,0.00020187,2]
[366878922,1750542632160,-160.0,0.0002048,2]
[366878924,1750542632170,-219.6704922,0.00021167,2]
[366878926,1750542632182,-214.44641,0.00021224,2]
[366878928,1750542632191,-178.73862709,0.00021259,2]
[366878929,1750542632201,-236.34773821,0.000219,6]
[366878931,1750542632209,-300.0,0.00021915,2]
[366878933,1750542632219,-216.0,0.00021915,2]
[366878935,1750542632229,-300.0,0.00021916,2]
[366878937,1750542632238,-300.0,0.00021916,2]
[366878939,1750542632249,-460.0,0.00021917,2]
[366878941,1750542632259,-330.4058756,0.00021917,2]
[366878943,1750542632268,-476.19,0.00021917,2]
[366878945,1750542632277,-460.0,0.00021917,2]
[366878947,1750542632287,-501.71485794,0.00021917,2]
[366878949,1750542632296,-460.0,0.00021917,2]
[366878950,1750542632306,-528.72138181,0.00021917,2]
[366878951,1750542632316,-460.0,0.00021917,2]
[366878952,1750542632326,-500.0,0.00021917,2]
[366878953,1750542632336,-500.0,0.00021917,2]
[366878954,1750542632345,-500.0,0.00021917,2]
[366878955,1750542632355,-440.0,0.00021917,2]
[366878956,1750542632365,-500.0,0.00021917,2]
[366878957,1750542632374,-460.0,0.00021917,2]
[366878958,1750542632385,-460.0,0.00021917,2]
[366878959,1750542632395,-460.0,0.00021917,2]
[366878960,1750542632404,-460.0,0.00021917,2]
[366878961,1750542632414,-430.0,0.00021917,2]
[366878962,1750542632423,-460.0,0.00021917,2]
[366878963,1750542632433,-500.0,0.00021917,2]
[366878964,1750542632442,-520.38230549,0.00021917,2]
[366878965,1750542632452,-440.0,0.00021917,2]
[366878966,1750542632462,-364.51998405,0.00021917,2]
[366878967,1750542632472,-430.0,0.00021917,2]
[366878968,1750542632481,-460.0,0.00021917,2]
[366878969,1750542632490,-381.74429913,0.00021917,2]
[366878970,1750542632500,-460.0,0.00021917,2]
[366878972,1750542632508,-400.68196008,0.00021917,2]
[366878973,1750542632518,-460.0,0.00021917,2]
[366878975,1750542632527,-230.71043238,0.00021917,2]
[366878976,1750542632536,-460.0,0.00021917,2]
[366878978,1750542632545,-607.99007252,0.00021917,2]
[366878980,1750542632554,-360.66107685,0.00021917,2]
[366879068,1750542637887,-99.33892315,0.00021917,2]
[366879070,1750542637897,-153.84241964,0.00021917,2]
[366879072,1750542637906,-319.66808545,0.00021917,2]
[366879074,1750542637916,-420.10227579,0.00021917,2]
[366879076,1750542637925,-460.0,0.00021917,2]
[366879078,1750542637935,-204.82851234,0.00021917,2]
[366879080,1750542637944,-279.21135444,0.00021917,2]
[366879082,1750542637954,-295.64490805,0.00021917,2]
[366879084,1750542637963,-602.14874199,0.00021917,2]
[366879086,1750542637972,-460.0,0.00021917,2]
[366879088,1750542637981,-541.60994964,0.00022037,2]
[366879090,1750542637990,-460.0,0.00022037,2]
[366879092,1750542638000,-482.82455642,0.00022037,2]
[366879094,1750542638009,-236.3477381,0.00022038,6]
[366879096,1750542638018,-160.0,0.00022165,2]
[366879099,1750542638028,-236.3477381,0.00022176,6]
[366879101,1750542638037,-236.3477381,0.00022314,7]
[366879104,1750542638051,-319.82516346,0.00022325,2]
[366879121,1750542638179,-460.0,0.00022325,2]
[366879123,1750542638189,-460.0,0.00022325,2]
[366879125,1750542638199,-460.0,0.00022325,2]
[366879127,1750542638209,-460.0,0.00022325,2]
[366879129,1750542638219,-460.0,0.00022325,2]
[366879131,1750542638229,-521.89104088,0.00022325,2]
[366879133,1750542638239,-460.0,0.00022325,2]
[366879135,1750542638249,-460.0,0.00022325,2]
[366879137,1750542638261,-460.0,0.00022325,2]
[366879139,1750542638271,-341.83170356,0.00022328,2]
[366879141,1750542638280,-440.0,0.00022328,2]
[366879143,1750542638290,-500.0,0.00022329,2]
[366879145,1750542638300,-509.22927698,0.0002233,2]
[366879146,1750542638309,-160.0,0.00022388,2]
[366879147,1750542638319,-160.0,0.00022388,2]
[366879148,1750542638329,-846.23824438,0.00022388,2]
[366879149,1750542638339,-160.0,0.00022388,2]
[366879151,1750542638348,-836.41202323,0.00022388,2]
[366879153,1750542638358,-236.3477381,0.00022452,7]
[366879155,1750542638367,-500.0,0.00022554,2]
[366879157,1750542638376,-500.0,0.00022554,2]
[366879158,1750542638387,-500.0,0.00022554,2]
[366879159,1750542638396,-500.0,0.00022554,2]
[366879161,1750542638405,-421.03843057,0.00022554,2]
[366879163,1750542638414,-244.13656033,0.00022554,2]
[366879165,1750542638424,-500.0,0.00022554,2]
[366879167,1750542638434,-500.0,0.00022554,2]
[366879169,1750542638444,-500.0,0.00022554,2]
[366879170,1750542638454,-500.0,0.00022554,2]
[366879172,1750542638463,-500.0,0.00022554,2]
[366879174,1750542638472,-500.0,0.00022554,2]
[366879176,1750542638482,-500.0,0.00022554,2]
[366879178,1750542638491,-500.0,0.00022554,2]
[366879180,1750542638500,-500.0,0.00022554,2]
[366879182,1750542638510,-500.0,0.00022554,2]
[366879183,1750542638520,-500.0,0.00022554,2]
[366879184,1750542638529,-500.0,0.00022554,2]
[366879185,1750542638539,-223.27935304,0.00022555,2]
[366879186,1750542638548,-221.84236874,0.00022555,2]
[366879188,1750542638557,-24900.0,0.00022556,2]
[366879190,1750542638567,-236.3477381,0.0002259,7]
[366879192,1750542638576,-500.0,0.0002267,2]
[366879194,1750542638585,-236.3477381,0.00022728,7]
[366879196,1750542638595,-330.57296548,0.00022833,2]
[366879198,1750542638604,-500.0,0.00022833,2]
[366879200,1750542638613,-236.3477381,0.00022866,8]
[366879202,1750542638622,-236.3477381,0.00023003,8]
[366879204,1750542638632,-236.3477381,0.00023141,8]
[366879206,1750542638641,-236.3477381,0.00023279,8]
[366879208,1750542638650,-236.3477381,0.00023417,9]
[366879210,1750542638659,-160.0,0.00023535,2]
[366879212,1750542638669,-236.3477381,0.00023555,9]
[366879214,1750542638678,-236.3477381,0.00023693,9]
[366879216,1750542638687,-460.0,0.00023815,2]
[366879218,1750542638696,-460.0,0.00023815,2]
[366879220,1750542638705,-460.0,0.00023815,2]
[366879222,1750542638715,-460.0,0.00023815,2]
[366879224,1750542638724,-434.34921623,0.00023815,2]
[366879226,1750542638733,-460.0,0.00023815,2]
[366879228,1750542638742,-460.0,0.00023815,2]
[366879230,1750542638752,-424.78,0.00023815,2]
[366879232,1750542638761,-420.0,0.00023816,2]
[366879234,1750542638770,-245.0,0.00023817,2]
[366879236,1750542638780,-420.0,0.00023817,2]
[366879238,1750542638789,-236.3477381,0.00023831,10]
[366879240,1750542638798,-5000.0,0.00023967,2]
[366879242,1750542638827,-207.4,0.00023967,2]
[366879244,1750542638846,-800.0,0.00023967,2]
[366879246,1750542638855,-800.0,0.00023967,2]
[366879248,1750542638864,-934.29428587,0.00023967,2]
[366879250,1750542638874,-300.0,0.00023967,2]
[366879252,1750542638885,-300.0,0.00023967,2]
[366879254,1750542638894,-300.0,0.00023967,2]
[366879256,1750542638903,-236.3477381,0.00023969,10]
[366879258,1750542638913,-523.9660634,0.00024,3]
[366879260,1750542638923,-523.9660634,0.00024,3]
[366879262,1750542638932,-236.3477381,0.00024107,10]
[366879264,1750542638941,-303.4856341,0.00024133,2]
[366879266,1750542638950,-236.3477381,0.00024245,10]
[366879268,1750542638959,-236.3477381,0.00024383,11]
[366879270,1750542638969,-236.3477381,0.00024521,11]
[366879272,1750542638978,-175.00368416,0.00024605,2]
[366879274,1750542638987,-255.0,0.00024605,2]
[366879276,1750542638996,-153.34192971,0.00024605,2]
[366879278,1750542639005,-214.44641,0.00024649,2]
[366879280,1750542639015,-1000.0,0.00024658,2]
[366879282,1750542639025,-1000.0,0.00024658,2]
[366879284,1750542639034,-1000.0,0.00024658,2]
[366879286,1750542639043,-342.28948334,0.00024658,2]
[366879288,1750542639053,-1000.0,0.00024658,2]
[366879290,1750542639062,-236.3477381,0.00024659,11]
[366879292,1750542639071,-236.3477381,0.00024797,11]
[366879294,1750542639080,-397.700768,0.00024834,4]
[366879296,1750542639089,-1649.1,0.000249,2]
[366879298,1750542639098,-160.0,0.00024905,2]
[366879300,1750542639108,-236.3477381,0.00024934,12]
[366879302,1750542639118,-324.61833984,0.00024965,2]
[366879304,1750542639128,-151.0,0.00025,7]
[366879306,1750542639138,-151.0,0.00025,7]
[366879308,1750542639148,-1000.0,0.00025,2]
[366879310,1750542639158,-523.9660634,0.00025,10]
[366879312,1750542639167,-168.0,0.00025007,2]
[366879314,1750542639178,-20157.13294047,0.00025021,2]
[366879329,1750542639322,-43325.48819516,0.00025021,2]